Cogmind - Beta 9.6 *** ADVENTURER MODE // 2020.05.25 @ 17:54:39 Player: Koi Result: Self-destructed Performance ------------- Evolutions (1) 500 Regions Visited (2) 400 Robots Destroyed (45) 225 Value Destroyed (1104) 1104 Prototype IDs (2) 40 Alien Tech Used (0) 0 Bonus (30) 30 TOTAL SCORE: 2299 Bonus ------- High Alert Combat Kills 30 Cogmind --------- Core Integrity 364/400 Matter 300/300 Energy 76/265 System Corruption 0% Temperature Cool (0) Movement Treading (160) Location -9/Materials Parts ------- > --- POWER (1) -------- Improved Ion Engine > --- PROPULSION (2) --- Light Treads Light Treads > --- UTILITY (4) ------ Improved Heat Sink Large Storage Unit Shield Generator Shield Generator > --- WEAPON (2) ------- Particle Cannon Katana > --- INVENTORY (10) --- Ion Engine Light Treads Heat Shielding Heat Sink Targeting Computer Hacking Suite Particle Cannon Improved Light Cannon Datajack Peak State ------------ > --- POWER ------------ Improved Ion Engine > --- PROPULSION ------- Light Treads Light Treads > --- UTILITY ---------- Improved Heat Sink Large Storage Unit Shield Generator Shield Generator > --- WEAPON ----------- Particle Cannon Katana > --- INVENTORY -------- Ion Engine Light Treads Heat Shielding Heat Sink Targeting Computer Hacking Suite Particle Cannon Improved Light Cannon Datajack [Rating: 18] Favorites ----------- Power Ion Engine Engine Ion Engine Propulsion Light Treads Treads Light Treads Utility Shield Generator Device Shield Generator Storage Large Storage Unit Processor Signal Interpreter Weapon Particle Cannon Energy Gun EM Pulse Gun Energy Cannon Particle Cannon Ballistic Gun Assault Rifle Slashing Weapon Katana Build | -11 -10 -9 ------- Run | Scr Mat Mat Slots Evolved 2 | . . 2 Power . | . . . Propulsion . | . . . Utility 2 | . . 2 Weapon . | . . . Parts Attached 24 | 7 5 12 Power 2 | 1 . 1 Engine 2 | 1 . 1 Core . | . . . Reactor . | . . . Propulsion 3 | 2 . 1 Treads 3 | 2 . 1 Leg . | . . . Wheel . | . . . Hover . | . . . Flight . | . . . Utility 9 | 2 3 4 Device 6 | 1 1 4 Storage 2 | 1 1 . Processor 1 | . 1 . Hackware . | . . . Protection . | . . . Artifact . | . . . Weapon 10 | 2 2 6 Energy Gun 1 | 1 . . Energy Cannon 6 | . 2 4 Ballistic Gun 1 | 1 . . Ballistic Cannon . | . . . Launcher . | . . . Special Weapon . | . . . Impact Weapon . | . . . Slashing Weapon 2 | . . 2 Piercing Weapon . | . . . Special Melee Weapon . | . . . Unidentified Prototypes . | . . . Parts Lost . | . . . Power . | . . . Propulsion . | . . . Utility . | . . . Weapon . | . . . Highest Loss Streak . | . . . Average Slot Usage (%) 99 | . 99 99 Engine 12 | . 14 11 Treads 25 | . 28 22 Device 20 | . 9 32 Storage 12 | . 13 11 Processor 2 | . 4 . Energy Gun 2 | . 4 . Energy Cannon 19 | . 18 21 Ballistic Gun 2 | . 4 . Naked Turns . | . . . Heaviest Build 36 | 14 30 36 Greatest Support 40 | 40 40 40 Greatest Overweight (x) . | . . . Average Overweight (x) . | . . . Largest Inventory Capacity 10 | 6 10 10 Average Capacity 8 | 5 6 10 Most Carried 10 | 4 6 10 Average Carried 6 | 1 5 7 Final Capacity 10 | 6 10 10 Final Carried 9 | 4 6 9 Class Distribution -------------------- 100% | Mutant Dominant Class ---------------- Mutant | -10/Materials Mutant | -9/Materials Resources | -11 -10 -9 ----------- Run | Scr Mat Mat Matter Collected 488 | 285 73 130 Remotely . | . . . Salvage Created 1518 | 93 432 993 Parts 89 | 5 29 55 Haulers Intercepted . | . . . Recyclers Shooed 1 | 1 . . Parts Field Recycled . | . . . Retrieved Matter . | . . . Parts Self-Destructed . | . . . Prevented . | . . . Kills | -11 -10 -9 ------- Run | Scr Mat Mat Combat Hostiles Destroyed 33 | . 12 21 Melee 2 | . . 2 Guns 6 | . 6 . Cannons 24 | . 6 18 Classes Destroyed 11 | 2 4 5 Worker 2 | . 2 . Tunneler 1 | 1 . . Recycler 1 | 1 . . Mechanic 1 | . . 1 Operator 1 | . . 1 Watcher 6 | . 2 4 Swarmer 10 | . 6 4 Grunt 17 | . 6 11 Brawler 1 | . . 1 Duelist 1 | . . 1 Sentry 4 | . . 4 Best Kill Streak 5 | 2 5 4 Combat Bots Only 4 | . 4 4 Max Kills in Single Turn 2 | 1 2 1 Gunslinging 1 | . 1 . Exploded . | . . . Melee 1 | . . 1 Uniques/NPCs Destroyed . | . . . Combat | -11 -10 -9 -------- Run | Scr Mat Mat Damage Taken 499 | . 103 396 Core 45 | . 9 36 Absorbed by Shields 147 | . . 147 Core Remaining (%) 98 | 100 96 . Volleys Fired 75 | 5 22 48 Largest 2 | 2 2 2 Hottest 136 | 60 136 136 Shots Fired 146 | 10 44 92 Gun 32 | 10 22 . Cannon 114 | . 22 92 Launcher . | . . . Special . | . . . Kinetic 16 | 5 11 . Thermal 114 | . 22 92 Explosive . | . . . Electromagnetic 16 | 5 11 . Robot Hit Streak 29 | 4 15 29 Robot Miss Streak 2 | 1 2 1 Penetration Max . | . . . Secondary Targets 1 | . 1 . Max Gunslinging Chain 1 | . 1 . Shots Hit Robots 105 | 7 26 72 Core Hits 50 | 3 20 27 Critical Hits 2 | . . 2 Critical Kills . | . . . Critical Parts Destroyed 2 | . . 2 Melee Attacks 3 | . . 3 Impact . | . . . Slashing 3 | . . 3 Piercing . | . . . Sneak Attacks . | . . . Combat Hostiles . | . . . Follow-up Attacks . | . . . Damage Inflicted 2231 | 77 587 1567 Guns 288 | 77 211 . Cannons 1738 | . 266 1472 Explosions 110 | . 110 . Melee 95 | . . 95 Ramming . | . . . Kinetic 107 | 25 82 . Thermal 1848 | . 376 1472 Explosive . | . . . Electromagnetic 181 | 52 129 . Impact . | . . . Slashing 95 | . . 95 Piercing . | . . . Highest Corruption . | . . . Average Corruption . | . . . Corruption Purged . | . . . Overload Shots . | . . . Overflow Damage 56 | . 46 10 Projectiles 21 | . 11 10 Explosions 35 | . 35 . Melee . | . . . Knockbacks . | . . . Impact . | . . . Kinetic . | . . . Secondary . | . . . Self-Inflicted Damage . | . . . Shots . | . . . Rammed . | . . . Targets Rammed . | . . . Kicked . | . . . Crushed . | . . . Highest Temperature 373 | . 300 373 Average Temperature 99 | . 88 103 Received Heat Transfer 180 | . 31 149 Effects 3 | . . 3 Shutdowns 1 | . . 1 Interference 2 | . . 2 Siege Activations . | . . . Robots Corrupted . | . . . Combat Hostiles . | . . . Parts Fried . | . . . Impact Corruptions . | . . . Robots Melted 1 | . . 1 Combat Hostiles 1 | . . 1 Parts Melted 8 | . 2 6 Heat Transferred 3245 | . 581 2664 Parts Sabotaged . | . . . Parts Stolen . | . . . Parts Stripped . | . . . Power Chain Reactions 1 | . 1 . Missiles Intercepted . | . . . Alert | -11 -10 -9 ------- Run | Scr Mat Mat Peak Influence 461 | 10 200 461 Average Influence 133 | 5 92 189 Maximum Alert Level 2 | . 1 2 Low Security (%) 80 | 100 98 59 Level 1 15 | . 1 31 Level 2 4 | . . 9 Level 3 . | . . . Level 4 . | . . . Level 5 . | . . . High Security . | . . . Max Security . | . . . Squads Dispatched 5 | . 2 3 Investigation 3 | . 2 1 Extermination . | . . . Reinforcement 2 | . . 2 Assault . | . . . Garrison . | . . . Intercept . | . . . Construction Impeded . | . . . Haulers Reinforced . | . . . Stealth | -11 -10 -9 --------- Run | Scr Mat Mat Distress Signals 1 | . 1 . Communications Jammed . | . . . Distress Signals . | . . . Times Spotted 42 | . 15 27 Peak Tracking Total 4 | . 3 4 Tactical Retreats 2 | . 2 . Traps | -11 -10 -9 ------- Run | Scr Mat Mat Traps Triggered 2 | . 1 1 Indirectly . | . . . Trap Hack Attempts . | . . . Triggered . | . . . Disarmed . | . . . Reprogrammed 6 | . 6 . Reused 1 | . 1 . Traps Extracted . | . . . Installed . | . . . Triggered 1 | . 1 . Machines | -11 -10 -9 ---------- Run | Scr Mat Mat Machines Disabled 1 | . 1 . Max in Single Turn 1 | . 1 . Machines Sabotaged . | . . . Garrisons Compromised . | . . . Overloaded Fab Kills . | . . . Fab Network Shutdowns . | . . . Hacking | -11 -10 -9 --------- Run | Scr Mat Mat Machines Accessed 5 | . 4 1 Terminals 4 | . 4 . Fabricators . | . . . Repair Stations . | . . . Recycling Units . | . . . Scanalyzers 1 | . . 1 Garrison Access . | . . . Total Hacks 22 | . 16 6 Successful 17 | . 11 6 Failed 5 | . 5 . Catastrophic . | . . . Database Lockouts . | . . . Manual 4 | . 4 . Terminals 16 | . 16 . Fabricators . | . . . Repair Stations . | . . . Recycling Units . | . . . Scanalyzers 6 | . . 6 Garrison Access . | . . . Terminal Hacks 9 | . 9 . Record 5 | . 5 . Prototype ID Bank 1 | . 1 . Locate Traps 2 | . 2 . Reprogram Traps 1 | . 1 . Fabricator Hacks . | . . . Repair Station Hacks . | . . . Recycling Unit Hacks . | . . . Scanalyzer 6 | . . 6 Insert Component 3 | . . 3 Analyze 3 | . . 3 Garrison Access Hacks . | . . . Unauthorized Hacks 2 | . 2 . Terminals 2 | . 2 . Botnet 2 | . 2 . Fabricators . | . . . Repair Stations . | . . . Recycling Units . | . . . Scanalyzers . | . . . Garrison Access . | . . . Data Cores Recovered . | . . . Used . | . . . Hacking Detections 4 | . 3 1 Full Trace Events 2 | . 1 1 Feedback Events . | . . . Feedback Blocked . | . . . Robot Schematics Acquired . | . . . Robots Built . | . . . Matter . | . . . Time . | . . . Total Robot Build Rating . | . . . Part Schematics Acquired 3 | . . 3 Parts Built . | . . . Matter . | . . . Time . | . . . Total Part Build Rating . | . . . Parts Repaired . | . . . Time . | . . . Parts Recycled . | . . . Recycled Matter . | . . . Retrieved Matter . | . . . Retrieved Components . | . . . Parts Scanalyzed 3 | . . 3 Part Schematics Acquired 3 | . . 3 Parts Damaged . | . . . Bothacking | -11 -10 -9 ------------ Run | Scr Mat Mat Used RIF Installer . | . . . Robots Hacked . | . . . Non-combat . | . . . Combat . | . . . Robot Hacks Applied . | . . . Relay Couplers Released . | . . . Robots Rewired . | . . . Allies Hacked . | . . . Hacks Repelled . | . . . Allies | -11 -10 -9 -------- Run | Scr Mat Mat Total Allies . | . . . Largest Group . | . . . Highest-Rated Group . | . . . Highest-Rated Ally . | . . . Total Orders . | . . . Ally Attacks . | . . . Total Damage . | . . . Kills . | . . . Allies Corrupted . | . . . Allies Melted . | . . . Intel | -11 -10 -9 ------- Run | Scr Mat Mat Robot Analysis Total . | . . . Derelict Logs Recovered . | . . . Drone Launches . | . . . Drone Recoveries . | . . . Exploration | -11 -10 -9 ------------- Run | Scr Mat Mat Turns Passed 1692 | 93 796 803 Spaces Moved 837 | 42 435 360 Core 3 | 3 . . Treads 834 | 39 435 360 Legs . | . . . Wheels . | . . . Hover . | . . . Flight . | . . . Fastest Speed 50 | 50 160 160 Average Speed 159 | 152 160 160 Slowest Speed 160 | 160 160 160 Overloaded Moves . | . . . Propulsion Burnouts . | . . . Robots Hopped . | . . . Cave-ins Triggered . | . . . Exploration Rate (%) 38 | 3 81 32 Regions Visited 2 Branch Regions . Pre-discovered Areas . | . . . Known Exits Taken . | . . . Unknown Exits Taken 2 | 1 1 . Scrap Searched . | . . . Spaces Dug . | . . . Terrain Destroyed 2 | . 2 . Melee . | . . . Projectile . | . . . AOE 2 | . 2 . Actions | -11 -10 -9 --------- Run | Scr Mat Mat Total 1045 | 59 497 489 Wait 65 | . 9 56 Move 835 | 41 434 360 Hop . | . . . Pick Up 25 | 6 13 6 Fast Attach 9 | 5 4 . Attach 8 | 2 1 5 Detach 1 | . 1 . Swap 7 | . . 7 Drop 17 | . 13 4 Fire 75 | 5 22 48 Melee 3 | . . 3 Ram . | . . . Kick . | . . . Crush . | . . . Escape Stasis . | . . . Rewire . | . . . Trap . | . . . Miscellaneous . | . . . Route ------- -11/Scrapyard -10/Materials (discovered 4 exits: *Mat x2 / [*Min x2]) -9/Materials (discovered 2 exits: [*Min] / [*Sto]) History --------- Turn | Location | Event 17 | -11/Scrapyard | Discovered new exit (range 15) 94 | -11/Scrapyard | Entered Materials 290 | -10/Materials | Discovered new exit (range 15) 318 | -10/Materials | Build established: Mutant 418 | -10/Materials | Discovered new exit (range 4) 636 | -10/Materials | Discovered new exit (range 15) 779 | -10/Materials | Discovered new exit (range 15) 890 | -10/Materials | Entered another Materials area 890 | -9/Materials | Evolved 2 slots: Utility x2 1327 | -9/Materials | Discovered new exit (range 6) 1369 | -9/Materials | Discovered new exit (range 9) 1693 | -9/Materials | Self-destructed Last Messages --------------- 01635_ R-06 Scavenger collects Aluminum Leg. 01636_ K-01 Serf collects debris. 01637_ K-01 Serf cleans the Electrolysis Chamber. 01639_ R-06 Scavenger collects Ion Engine. 01640_ K-01 Serf collects debris. 01653_ Acquired 10 matter. 01663_ G-34 Mercenary destroyed. 01664_ K-01 Serf collects debris. 01675_ Y-45 Defender suffers critical hit. 01675_ Destroyed Heat Sink. 01677_ Y-45 Defender heat damages Beam Rifle. 01678_ Melted Lgt. Armor Plating. 01679_ Y-45 Defender critical meltdown. 01679_ Hvy. Assault Rifle melted. 01681_ Destroyed Lgt. Ion Engine. 01683_ Overheating: System interference. 01683_ Particle Cannon temporarily disabled. 01683_ Shield Generator temporarily disabled. 01685_ Acquired 10 matter. 01687_ R-06 Scavenger collects Heat Sink. Map ----- +----------------------------------------------------+ | ?????#######?????????????????????????????????????? | | ?????# #?????????????????????????????????????? | | ###### #?????????????????????????????????????? | | * %= T #?????????????????????????????????????? | | ###### #?????????????????????????????????????? | | #????# #?????????????????????????????????????? | | #????#######?????????????????????????????????????? | | #????????????????????????????????????????????????? | | ###??????????????????????????????????????????????? | | #??????????????????????????????????????????????? | | %#???##?????????????????????????????????????????? | | #?? ?????????????????????????????????????????? | | #?""" ?????????????????????????????????????????? | | #?""" "??????????????????????????? ????????????? | | # """ "?????????????????????????? ????????????? | | # """ ""???????????????????????? ?????????????? | | +%""" ""??????????????????????? #??????????????? | | # #??????????????????? #??????????????? | | # #?????????????????? #??????????????? | | #?####+####?????????######## ???????????????? | | #### #??????????# ?????????????????? | | ############ ???????????????????? | | < + # % ?????????????????????? | | % ## # =a#??????????????????????? | | ###### ## # %#??????????????????????? | | ?????## ### # @#??????????????????????? | | ??????# #?# + #??????????????????????? | | ??????# + """ """ # %#??????????????????????? | | ??????# ### """ """ # #??????????????????????? | | ?????? #?# """ """ #o ########???????????????? | | ?????###+##?########### # #???????????????? | | ??????????????????????# #%=""" #???????????????? | | ??????????????????????# ]#%%""" #???????????????? | | ??????????????????????+ %+[=""" #???????????????? | | ??????????????????????# # #???????????????? | | ??????????????????????# k# #???????????????? | | ??????????????????????# ########???????????????? | | ??????????????????????# #??????????????????????? | | ??????????????????????# %#??????????????????????? | | ??????????????????????# #??????????????????????? | | ??????????????????????# [#??????????????????????? | | ##????????????????????# !%#??????????????????????? | | ?#??????????????????# =#??????????????????????? | | "" #??????????????????#%" #??????????????????????? | | "" #?????????????????? "%! ??????????????????????? | | "" #?????????????????? ! ??????????????????????? | | #?????????????????? ??????????????????????? | | "" #?????????????????? ??????????????????????? | | "" #?????????????????? ??????????????????????? | | " #?????????????????????????????????????????????? | +----------------------------------------------------+ Best States ------------- Heat Dissipation 42 Energy Generation 12 Energy Capacity 265 Matter Stores 300 Matter Capacity 300 Sight Range 16 Terrain Scan Range 16 Terrain Scan Density 10 Heat Shielding 75 Resistance: KI 20 Resistance: TH 20 Resistance: EX 20 Resistance: EM 20 Resistance: I 20 Resistance: S 20 Resistance: P 20 Evasion (%) 40 Recoil Reduction 2 Offensive Hacking 10 Item Schematics ----------------- Datajack | -9/Materials | Scanalyzed Particle Cannon | -9/Materials | Scanalyzed Heat Shielding | -9/Materials | Scanalyzed Robot Schematics ------------------ None Fabricated ------------ Nothing Alien Tech Used ----------------- None Achievements -------------- True Hacker Challenges ------------ None Game ------ Seed MappingSeismicCanceller Manual? 0 Play Time 00:20:37 Cumulative 8.0 hours Start 2020.05.25 @ 17:34:28 End 2020.05.25 @ 17:54:39 Sessions 1 Manual Loads 0 Difficulty Adventurer Special Mode None Game No. 7 Rogue 0 Adventurer 7 Explorer 0 Win Type - Total 0 Types 0/0/0/0/0/0/0 Lore% 9 Gallery% 11 Achievement% 10 Wizard Run 0 Options --------- ASCII 0 Keyboard 0 Movement Mouse Keybinds 0 Fullscreen 1 Font 18/SmallcapsGlow Map View 76x50 Tactical HUD 1 Map Filters NONE Filters NONE Steam 1 RUN: 06d3e3bf-e64e-478f-8d58-0fc198d098e0